Cogmind - Beta 16 @@@ ROGUE MODE // 2025.11.04 @ 20:35:25 Player: taku_the_hopeless Result: Destroyed by H-77 Assassin with Coil Gun Performance ------------- Evolutions (6) 3000 Regions Visited (14) 2800 Robots Destroyed (0) 0 Value Destroyed (30) 30 Prototype IDs (15) 300 Alien Tech Used (0) 0 Bonus (3018) 3018 TOTAL SCORE: 9148 Bonus ------- Pacifist 2218 Entered DSFs 500 Registered with UFD 300 Cogmind --------- Core Integrity 0/1150 Matter 296/300 Energy 78/160 System Corruption 1% Temperature Cool (0) Movement Core (100) Ox1 Location -4/Upper Caves Parts ------- > --- POWER (5) -------- Light Nuclear Core > --- PROPULSION (5) --- VTOL Module VTOL Module VTOL Module > --- UTILITY (5) ------ Hacking Suite System Shield A0-MCA's Component Scanner > --- WEAPON (4) ------- (None) > --- INVENTORY (5) ---- Experimental Sensor Array Advanced ECM Suite Trap Extractor (0/4) Peak State ------------ > --- POWER ------------ (None) > --- PROPULSION ------- Backup Propulsion III Improved Antigrav System Impulse Thruster Impulse Thruster Q-thruster > --- UTILITY ---------- Experimental Sensor Array Advanced Signal Interpreter Hacking Suite System Shield A0-MCA's Component Scanner > --- WEAPON ----------- Advanced Plasma Cannon Advanced Datajack > --- INVENTORY -------- Impulse Thruster Advanced ECM Suite Graphene Brace Trap Extractor DRS Beacon [Rating: 76] Favorites ----------- Power Backup Power III Engine Backup Power III Power Core Light Nuclear Core Propulsion Cesium-ion Thruster Hover Unit Backup Propulsion III Flight Unit Cesium-ion Thruster Utility Hacking Suite Device Seismic Detector Processor A0-MCA's Component Scanner Hackware Hacking Suite Weapon Datajack Energy Gun Improved Medium Laser Energy Cannon Advanced Plasma Cannon Impact Weapon Power Maul Slashing Weapon Power Sword Special Melee Weapon Datajack Build | -11 -10 -9 -9 -8 -7 -7 -7 -7 -5 -5 -5 -5 -4 -4 ------- Run | Yrd Mat Mat Min Mat Fac Sto Rec Scr Fac Was Fac DSF Fac Upp Slots Evolved 12 | . . 2 . 2 2 . . . 4 . . . 2 . Power 4 | . . 2 . . 2 . . . . . . . . . Propulsion 3 | . . . . 2 . . . . 1 . . . . . Utility 3 | . . . . . . . . . 2 . . . 1 . Weapon 2 | . . . . . . . . . 1 . . . 1 . Parts Attached 36 | . 2 4 . 3 1 3 . 2 2 2 . . 9 8 Power 2 | . . . . . . . . . . . . . . 2 Engine . | . . . . . . . . . . . . . . . Core 2 | . . . . . . . . . . . . . . 2 Reactor . | . . . . . . . . . . . . . . . Propulsion 16 | . . 2 . 2 . 2 . . . 1 . . 5 4 Treads . | . . . . . . . . . . . . . . . Leg . | . . . . . . . . . . . . . . . Wheel . | . . . . . . . . . . . . . . . Hover 4 | . . . . 2 . 1 . . . . . . 1 . Flight 12 | . . 2 . . . 1 . . . 1 . . 4 4 Utility 11 | . 2 . . . 1 . . 1 2 1 . . 2 2 Device 6 | . 2 . . . . . . . . 1 . . 1 2 Storage . | . . . . . . . . . . . . . . . Processor 2 | . . . . . . . . . 1 . . . 1 . Hackware 3 | . . . . . 1 . . 1 1 . . . . . Protection . | . . . . . . . . . . . . . . . Artifact . | . . . . . . . . . . . . . . . Weapon 7 | . . 2 . 1 . 1 . 1 . . . . 2 . Energy Gun 1 | . . 1 . . . . . . . . . . . . Energy Cannon 1 | . . . . . . . . . . . . . 1 . Ballistic Gun . | . . . . . . . . . . . . . . . Ballistic Cannon . | . . . . . . . . . . . . . . . Launcher . | . . . . . . . . . . . . . . . Special Weapon . | . . . . . . . . . . . . . . . Impact Weapon 1 | . . . . 1 . . . . . . . . . . Slashing Weapon 2 | . . . . . . 1 . 1 . . . . . . Piercing Weapon . | . . . . . . . . . . . . . . . Special Melee Weapon 2 | . . 1 . . . . . . . . . . 1 . Unidentified Prototypes 1 | . . 1 . . . . . . . . . . . . Parts Lost 23 | . . . . 2 . 6 . . . . . 5 7 3 Power 5 | . . . . 2 . . . . . . . 2 . 1 Propulsion 12 | . . . . . . 4 . . . . . 1 5 2 Utility 3 | . . . . . . 1 . . . . . 1 1 . Weapon 3 | . . . . . . 1 . . . . . 1 1 . Highest Loss Streak 6 | . . . . 2 . 6 . . . . . 5 6 2 To Critical Strikes . | . . . . . . . . . . . . . . . Average Backups 3 | . . 4 4 5 5 4 4 4 3 3 4 4 3 2 Power . | . . . . . . . . . . . . . . . Propulsion . | . . . . 1 1 . . . . . . . . . Utility 3 | . . 4 4 4 4 4 4 4 3 3 4 4 2 2 Weapon . | . . . . . . . . . . . . . . . Tool/Special . | . . . . . . . . . . . . . . . Unused Backups 10 | . . 4 1 . . 1 . 2 . . . 1 1 . Power . | . . . . . . . . . . . . . . . Propulsion . | . . . . . . . . . . . . . . . Utility 10 | . . 4 1 . . 1 . 2 . . . 1 1 . Weapon . | . . . . . . . . . . . . . . . Tool/Special . | . . . . . . . . . . . . . . . Average Slot Usage (%) 40 | . 9 45 55 62 61 52 15 18 24 43 52 44 47 37 Hover 2 | . . . . 7 15 8 . . . 1 5 5 6 . Flight 9 | . . 14 22 18 15 15 . . . 4 5 5 10 12 Device 9 | . 9 22 22 18 8 6 . . . 1 5 3 4 4 Processor 2 | . . . . . . . . . 3 5 5 5 9 5 Hackware 6 | . . . . . 6 7 7 10 14 15 11 11 10 10 Slashing Weapon 1 | . . . . . . 1 7 7 5 5 5 4 . . Special Melee Weapon 3 | . . 8 11 9 7 5 . . . . . . 3 . Peak Build Rating 76 | . 2 10 10 24 24 24 7 14 25 46 46 46 76 38 Average Rating 24 | . . 7 9 16 23 20 6 10 21 38 46 38 57 30 On Entrance 17 | . . 2 10 10 22 24 6 7 14 25 46 46 20 24 Avg Prop Armor Cover (%) 15 | . . . . 17 18 9 . . . 6 7 9 18 17 Naked Turns 32 | . 32 . . . . . . . . . . . . . Heaviest Build 11 | . 2 3 3 8 6 5 2 3 3 8 8 8 11 11 Greatest Support 16 | 3 3 10 10 10 10 15 3 3 3 8 8 8 15 16 Greatest Overweight (x) 3 | . . . . . . . . . . 2 . . 3 2 Average Overweight (x) . | . . . . . . . . . . . . . . . Largest Inventory Capacity 5 | 5 5 5 5 5 5 5 5 5 5 5 5 5 5 5 Average Capacity 5 | 5 5 5 5 5 5 5 5 5 5 5 5 5 5 5 Most Carried 5 | . . 5 5 5 5 5 5 5 5 5 5 5 5 3 Average Carried 4 | . . 4 4 5 5 4 4 4 4 4 5 4 4 1 Final Capacity 5 | 5 5 5 5 5 5 5 5 5 5 5 5 5 5 5 Final Carried 5 | . . 5 5 5 5 4 5 5 4 5 5 5 4 3 Class Distribution -------------------- 40% | Hacker-Mutant 29% | Sprinter 24% | Mutant 5% | Hacker-Sprinter Dominant Class ---------------- Mutant | -10/Materials Sprinter | -9/Materials Sprinter | -9/Mines Sprinter | -8/Materials Sprinter | -7/Factory Sprinter | -7/Storage Mutant | -7/Recycling Mutant | -7/Scraptown Hacker-Mutant | -5/Factory Hacker-Mutant | -5/Waste Hacker-Mutant | -5/Factory Hacker-Mutant | -5/DSF Hacker-Mutant | -4/Factory Hacker-Sprinter | -4/Upper Caves Resources | -11 -10 -9 -9 -8 -7 -7 -7 -7 -5 -5 -5 -5 -4 -4 ----------- Run | Yrd Mat Mat Min Mat Fac Sto Rec Scr Fac Was Fac DSF Fac Upp Matter Collected 503 | . . . 11 160 . 70 . . . 109 . . . 153 Remotely . | . . . . . . . . . . . . . . . Salvage Created . | . . . . . . . . . . . . . . . Parts . | . . . . . . . . . . . . . . . Haulers Intercepted . | . . . . . . . . . . . . . . . Recyclers Shooed . | . . . . . . . . . . . . . . . Parts Field Recycled . | . . . . . . . . . . . . . . . Retrieved Matter . | . . . . . . . . . . . . . . . Parts Self-Destructed 18 | . . . . . . . . . . . . . . 18 Prevented . | . . . . . . . . . . . . . . . Parts Restored . | . . . . . . . . . . . . . . . Kills | -11 -10 -9 -9 -8 -7 -7 -7 -7 -5 -5 -5 -5 -4 -4 ------- Run | Yrd Mat Mat Min Mat Fac Sto Rec Scr Fac Was Fac DSF Fac Upp Combat Hostiles Destroyed . | . . . . . . . . . . . . . . . Classes Destroyed . | . . . . . . . . . . . . . . . Best Kill Streak . | . . . . . . . . . . . . . . . Combat Bots Only . | . . . . . . . . . . . . . . . Max Kills in Single Turn . | . . . . . . . . . . . . . . . Gunslinging . | . . . . . . . . . . . . . . . Exploded . | . . . . . . . . . . . . . . . Melee . | . . . . . . . . . . . . . . . Uniques/NPCs Destroyed . | . . . . . . . . . . . . . . . Combat | -11 -10 -9 -9 -8 -7 -7 -7 -7 -5 -5 -5 -5 -4 -4 -------- Run | Yrd Mat Mat Min Mat Fac Sto Rec Scr Fac Was Fac DSF Fac Upp Hostile Shots Fired 385 | . . 13 2 37 . 99 . . . . . 19 159 56 Missed 199 | . . 10 2 23 . 41 . . . . . 8 87 28 Hits 186 | . . 3 . 14 . 58 . . . . . 11 72 28 Projectile 186 | . . 3 . 14 . 58 . . . . . 11 72 28 Critical Strikes 4 | . . . . 1 . . . . . . . 2 1 . Damage Taken 2736 | . . 22 . 158 . 605 . . . . . 310 1182 459 Core 1797 | . . 7 . 55 . 397 . . . . . 178 830 330 Absorbed by Shields . | . . . . . . . . . . . . . . . Regen/Repaired (Parts) 37 | . . . . 6 . . . . . 31 . . . . Core Remaining (%) 85 | 100 100 . 98 90 . . . 43 . . . 82 . . Volleys Fired . | . . . . . . . . . . . . . . . Largest . | . . . . . . . . . . . . . . . Hottest . | . . . . . . . . . . . . . . . Shots Fired . | . . . . . . . . . . . . . . . Gun . | . . . . . . . . . . . . . . . Cannon . | . . . . . . . . . . . . . . . Launcher . | . . . . . . . . . . . . . . . Special . | . . . . . . . . . . . . . . . Kinetic . | . . . . . . . . . . . . . . . Thermal . | . . . . . . . . . . . . . . . Explosive . | . . . . . . . . . . . . . . . Electromagnetic . | . . . . . . . . . . . . . . . Robot Hit Streak . | . . . . . . . . . . . . . . . Robot Miss Streak . | . . . . . . . . . . . . . . . Penetration Max . | . . . . . . . . . . . . . . . Secondary Targets . | . . . . . . . . . . . . . . . Shots Hit Robots 15 | . . 6 . 1 . . . . . . . . 8 . Core Hits . | . . . . . . . . . . . . . . . Critical Kills . | . . . . . . . . . . . . . . . Critical Parts Destroyed . | . . . . . . . . . . . . . . . Critical Strikes . | . . . . . . . . . . . . . . . Melee Attacks 28 | . . 6 . 5 1 6 . . 1 . . . 9 . Impact 3 | . . . . . 1 2 . . . . . . . . Slashing 5 | . . . . . . 4 . . 1 . . . . . Piercing . | . . . . . . . . . . . . . . . Sneak Attacks 13 | . . 5 . . . . . . . . . . 8 . Combat Hostiles . | . . . . . . . . . . . . . . . Follow-up Attacks . | . . . . . . . . . . . . . . . Damage Inflicted . | . . . . . . . . . . . . . . . Guns . | . . . . . . . . . . . . . . . Cannons . | . . . . . . . . . . . . . . . Explosions . | . . . . . . . . . . . . . . . Melee . | . . . . . . . . . . . . . . . Ramming . | . . . . . . . . . . . . . . . Kinetic . | . . . . . . . . . . . . . . . Thermal . | . . . . . . . . . . . . . . . Explosive . | . . . . . . . . . . . . . . . Electromagnetic . | . . . . . . . . . . . . . . . Impact . | . . . . . . . . . . . . . . . Slashing . | . . . . . . . . . . . . . . . Piercing . | . . . . . . . . . . . . . . . Highest Corruption 2 | . 2 . . . . . . . . . . . 1 1 Average Corruption 1 | . 2 . . . . . . . . . . . 1 1 Corruption Purged . | . . . . . . . . . . . . . . . Corruption Blocked . | . . . . . . . . . . . . . . . Effects 3 | . . . . . . . . . . . . . . 3 Message Errors 1 | . . . . . . . . . . . . . . 1 Matter Fused 1 | . . . . . . . . . . . . . . 1 Energy Discharges 1 | . . . . . . . . . . . . . . 1 Overload Shots . | . . . . . . . . . . . . . . . Overflow Damage . | . . . . . . . . . . . . . . . Projectiles . | . . . . . . . . . . . . . . . Explosions . | . . . . . . . . . . . . . . . Melee . | . . . . . . . . . . . . . . . Knockbacks . | . . . . . . . . . . . . . . . Impact . | . . . . . . . . . . . . . . . Kinetic . | . . . . . . . . . . . . . . . Secondary . | . . . . . . . . . . . . . . . Self-Inflicted Damage . | . . . . . . . . . . . . . . . Shots . | . . . . . . . . . . . . . . . Rammed . | . . . . . . . . . . . . . . . Targets Rammed . | . . . . . . . . . . . . . . . Kicked . | . . . . . . . . . . . . . . . Crushed . | . . . . . . . . . . . . . . . Highest Temperature . | . . . . . . . . . . . . . . . Average Temperature . | . . . . . . . . . . . . . . . Received Heat Transfer 132 | . . . . 18 . 84 . . . . . . 18 12 Siege Activations . | . . . . . . . . . . . . . . . Martial Activations . | . . . . . . . . . . . . . . . Shielding Activations . | . . . . . . . . . . . . . . . Robots Disrupted . | . . . . . . . . . . . . . . . Combat Hostiles . | . . . . . . . . . . . . . . . Robots Corrupted . | . . . . . . . . . . . . . . . Combat Hostiles . | . . . . . . . . . . . . . . . Parts Fried . | . . . . . . . . . . . . . . . Impact Corruptions . | . . . . . . . . . . . . . . . Robots Melted . | . . . . . . . . . . . . . . . Combat Hostiles . | . . . . . . . . . . . . . . . Parts Melted . | . . . . . . . . . . . . . . . Heat Transferred . | . . . . . . . . . . . . . . . Parts Sabotaged . | . . . . . . . . . . . . . . . Parts Stolen . | . . . . . . . . . . . . . . . Parts Stripped . | . . . . . . . . . . . . . . . Power Chain Reactions . | . . . . . . . . . . . . . . . Alert | -11 -10 -9 -9 -8 -7 -7 -7 -7 -5 -5 -5 -5 -4 -4 ------- Run | Yrd Mat Mat Min Mat Fac Sto Rec Scr Fac Was Fac DSF Fac Upp Maximum Alert Level . | . . . . . . . . . . . . . . . Low Security (%) 100 | 100 100 100 100 100 100 100 100 . 100 100 100 100 100 . Level 1 . | . . . . . . . . . . . . . . . Level 2 . | . . . . . . . . . . . . . . . Level 3 . | . . . . . . . . . . . . . . . Level 4 . | . . . . . . . . . . . . . . . Level 5 . | . . . . . . . . . . . . . . . High Security . | . . . . . . . . . . . . . . . Max Security . | . . . . . . . . . . . . . . . Peak Influence 100 | . . 29 16 45 30 55 100 . 2 . . . 100 . Initial 27 | . . . 16 . 27 9 11 . . . . . . . Average 9 | . . 1 4 17 23 14 54 . . . . . 13 . Influence Increases 737 | . . 74 . 116 23 135 129 . 2 . . . 213 45 Successful Hack 90 | . . 14 . 11 8 . 9 . . . . . 48 . Select Force Hacks 120 | . . . . . . . 120 . . . . . . . Disable Machine 45 | . . . . . 15 30 . . . . . . . . Destroy Structure 2 | . . . . . . . . . 2 . . . . . Partial Spotted 45 | . . 15 . 15 . . . . . . . . 15 . Lose Combat Pursuer 435 | . . 45 . 90 . 105 . . . . . . 150 45 Influence Decreases 722 | . . 30 44 56 63 125 79 80 2 . . . 137 106 Entered New Map 200 | . . . 28 . 33 11 19 80 . . . . . 29 Time Decay 361 | . . 30 . 36 30 54 60 . 2 . . . 82 67 Lost Part 135 | . . . . 20 . 60 . . . . . . 45 10 Lost Ally 26 | . . . 16 . . . . . . . . . 10 . Squads Dispatched 11 | . . 2 . 1 1 1 . . . . . 2 4 . Investigation 5 | . . 2 . 1 1 . . . . . . . 1 . Extermination 1 | . . . . . . . . . . . . . 1 . Reinforcement 5 | . . . . . . 1 . . . . . 2 2 . Assault . | . . . . . . . . . . . . . . . Garrison . | . . . . . . . . . . . . . . . Intercept . | . . . . . . . . . . . . . . . Searches Triggered . | . . . . . . . . . . . . . . . Construction Impeded . | . . . . . . . . . . . . . . . Haulers Reinforced . | . . . . . . . . . . . . . . . Active Scanning Responses . | . . . . . . . . . . . . . . . Cargo Convoy Interrupts . | . . . . . . . . . . . . . . . Stealth | -11 -10 -9 -9 -8 -7 -7 -7 -7 -5 -5 -5 -5 -4 -4 --------- Run | Yrd Mat Mat Min Mat Fac Sto Rec Scr Fac Was Fac DSF Fac Upp Distress Signals 4 | . . 2 . 1 . . . . . . . . 1 . Communications Jammed . | . . . . . . . . . . . . . . . Distress Signals . | . . . . . . . . . . . . . . . Times Spotted 119 | . . 9 30 17 1 14 . . . . . 4 28 16 Peak Tracking Total 20 | . . 7 20 13 . 9 . . . . . 4 13 10 Tactical Retreats 13 | . . 2 1 2 . 3 . . . . . . 3 2 ECM-based Alert Blocks 4 | . . . . . . . . . . . . . . 4 Traps | -11 -10 -9 -9 -8 -7 -7 -7 -7 -5 -5 -5 -5 -4 -4 ------- Run | Yrd Mat Mat Min Mat Fac Sto Rec Scr Fac Was Fac DSF Fac Upp Traps Triggered 4 | . 1 1 . . . 1 . . 1 . . . . . Indirectly . | . . . . . . . . . . . . . . . Trap Hack Attempts . | . . . . . . . . . . . . . . . Triggered . | . . . . . . . . . . . . . . . Disarmed . | . . . . . . . . . . . . . . . Reprogrammed . | . . . . . . . . . . . . . . . Reused . | . . . . . . . . . . . . . . . Traps Extracted . | . . . . . . . . . . . . . . . Installed . | . . . . . . . . . . . . . . . Triggered . | . . . . . . . . . . . . . . . Machines | -11 -10 -9 -9 -8 -7 -7 -7 -7 -5 -5 -5 -5 -4 -4 ---------- Run | Yrd Mat Mat Min Mat Fac Sto Rec Scr Fac Was Fac DSF Fac Upp Machines Disabled 3 | . . . . . 1 2 . . . . . . . . Max in Single Turn 1 | . . . . . 1 1 . . . . . . . . Machines Repaired . | . . . . . . . . . . . . . . . Machines Dismantled . | . . . . . . . . . . . . . . . Machines Sabotaged . | . . . . . . . . . . . . . . . Overloaded Fab Kills . | . . . . . . . . . . . . . . . Hacking | -11 -10 -9 -9 -8 -7 -7 -7 -7 -5 -5 -5 -5 -4 -4 --------- Run | Yrd Mat Mat Min Mat Fac Sto Rec Scr Fac Was Fac DSF Fac Upp Machines Accessed 31 | . . 4 . 3 4 1 9 1 . . 2 . 7 . Terminals 16 | . . 2 . 1 2 1 4 . . . 2 . 4 . Fabricators 3 | . . . . . 2 . . . . . . . 1 . Repair Stations 2 | . . 1 . 1 . . . . . . . . . . Recycling Units 7 | . . . . . . . 5 . . . . . 2 . Scanalyzers 2 | . . 1 . 1 . . . . . . . . . . Garrison Access . | . . . . . . . . . . . . . . . Total Hacks 89 | . . 12 . 9 11 2 22 5 . . 4 . 24 . Successful 51 | . . 7 . 6 7 . 11 5 . . 1 . 14 . Failed 38 | . . 5 . 3 4 2 11 . . . 3 . 10 . Catastrophic 3 | . . 2 . . . . . . . . . . 1 . Database Lockouts . | . . . . . . . . . . . . . . . Manual 48 | . . 6 . 4 6 3 14 . . . . . 15 . Terminals 53 | . . 8 . 3 9 2 10 . . . 4 . 17 . Fabricators 4 | . . . . . 2 . . . . . . . 2 . Repair Stations 6 | . . 2 . 4 . . . . . . . . . . Recycling Units 17 | . . . . . . . 12 . . . . . 5 . Scanalyzers 4 | . . 2 . 2 . . . . . . . . . . Garrison Access . | . . . . . . . . . . . . . . . Terminal Hacks 16 | . . 2 . . 3 . 2 5 . . 1 . 3 . Robot Schematic 1 | . . . . . . . 1 . . . . . . . Robot Analysis 5 | . . . . . . . . 5 . . . . . . Prototype ID Bank 1 | . . 1 . . . . . . . . . . . . Open DSF 1 | . . . . . . . . . . . 1 . . . Branch Access Points 1 | . . . . . . . . . . . . . 1 . Terminal Index 1 | . . . . . . . . . . . . . 1 . Alert Level 1 | . . . . . . . 1 . . . . . . . Locate Traps 1 | . . . . . 1 . . . . . . . . . Hauler Manifests 2 | . . 1 . . 1 . . . . . . . . . Zone Layout 2 | . . . . . 1 . . . . . . . 1 . Fabricator Hacks 4 | . . . . . 2 . . . . . . . 2 . Network Status 2 | . . . . . 1 . . . . . . . 1 . Build 2 | . . . . . 1 . . . . . . . 1 . Repair Station Hacks 1 | . . . . 1 . . . . . . . . . . Refit 1 | . . . . 1 . . . . . . . . . . Recycling Unit Hacks 7 | . . . . . . . 4 . . . . . 3 . Report Inventory 5 | . . . . . . . 3 . . . . . 2 . Retrieve Components 2 | . . . . . . . 1 . . . . . 1 . Scanalyzer 4 | . . 2 . 2 . . . . . . . . . . Insert Component 1 | . . 1 . . . . . . . . . . . . Analyze 1 | . . 1 . . . . . . . . . . . . Retrieve Study 2 | . . . . 2 . . . . . . . . . . Garrison Access Hacks . | . . . . . . . . . . . . . . . Unauthorized Hacks 19 | . . 3 . 3 2 . 5 . . . . . 6 . Terminals 14 | . . 3 . 2 2 . 1 . . . . . 6 . Track 2 | . . . . 1 1 . . . . . . . . . Assimilate 2 | . . . . . . . . . . . . . 2 . Botnet 7 | . . 1 . 1 1 . 1 . . . . . 3 . Disrupt 1 | . . 1 . . . . . . . . . . . . Skim 2 | . . 1 . . . . . . . . . . 1 . Fabricators . | . . . . . . . . . . . . . . . Repair Stations 1 | . . . . 1 . . . . . . . . . . Patch 1 | . . . . 1 . . . . . . . . . . Recycling Units 4 | . . . . . . . 4 . . . . . . . Tunnel 4 | . . . . . . . 4 . . . . . . . Scanalyzers . | . . . . . . . . . . . . . . . Garrison Access . | . . . . . . . . . . . . . . . Data Cores Recovered . | . . . . . . . . . . . . . . . Used . | . . . . . . . . . . . . . . . Hacking Detections 23 | . . 3 . 2 3 1 7 . . . 2 . 5 . Full Trace Events 4 | . . 1 . . 1 . 1 . . . . . 1 . Feedback Events . | . . . . . . . . . . . . . . . Feedback Blocked . | . . . . . . . . . . . . . . . Robot Schematics Acquired 1 | . . . . . . . 1 . . . . . . . Robots Built . | . . . . . . . . . . . . . . . Authchips . | . . . . . . . . . . . . . . . Time . | . . . . . . . . . . . . . . . Total Robot Build Rating . | . . . . . . . . . . . . . . . Part Schematics Acquired 1 | . . 1 . . . . . . . . . . . . Parts Built 2 | . . . . . . . . . . . . . 2 . Authchips . | . . . . . . . . . . . . . . . Time 291 | . . . . . 152 . . . . . . . 139 . Total Part Build Rating 18 | . . . . . . . . . . . . . 18 . Part Studies Acquired 1 | . . . . 1 . . . . . . . . . . Parts Repaired . | . . . . . . . . . . . . . . . Time . | . . . . . . . . . . . . . . . Parts Recycled . | . . . . . . . . . . . . . . . Recycled Matter . | . . . . . . . . . . . . . . . Retrieved Matter . | . . . . . . . . . . . . . . . Retrieved Components 4 | . . . . . . . 2 . . . . . 2 . Parts Scanalyzed 1 | . . 1 . . . . . . . . . . . . Part Schematics Acquired 1 | . . 1 . . . . . . . . . . . . Parts Damaged . | . . . . . . . . . . . . . . . Bothacking | -11 -10 -9 -9 -8 -7 -7 -7 -7 -5 -5 -5 -5 -4 -4 ------------ Run | Yrd Mat Mat Min Mat Fac Sto Rec Scr Fac Was Fac DSF Fac Upp Used RIF Installer . | . . . . . . . . . . . . . . . Robots Hacked 9 | . . 3 . 1 . . . . . . . . 5 . Non-combat 8 | . . 3 . . . . . . . . . . 5 . Combat 1 | . . . . 1 . . . . . . . . . . Robot Hacks Applied 13 | . . 5 . 1 . . . . . . . . 7 . parse_system 7 | . . 3 . 1 . . . . . . . . 3 . no_distress 3 | . . 2 . . . . . . . . . . 1 . find_chute 2 | . . . . . . . . . . . . . 2 . find_fabricator 1 | . . . . . . . . . . . . . 1 . Relay Couplers Released . | . . . . . . . . . . . . . . . Fabnet Peak Effective % . | . . . . . . . . . . . . . . . Robots Rewired . | . . . . . . . . . . . . . . . Allies Hacked . | . . . . . . . . . . . . . . . Hacks Repelled . | . . . . . . . . . . . . . . . Allies | -11 -10 -9 -9 -8 -7 -7 -7 -7 -5 -5 -5 -5 -4 -4 -------- Run | Yrd Mat Mat Min Mat Fac Sto Rec Scr Fac Was Fac DSF Fac Upp Total Allies 23 | . . . 2 . . . . . . 20 . . 1 . Largest Group 20 | . . . 2 . . . . . . 20 2 2 1 . Highest-Rated Group 805 | . . . 45 . . . . . . 805 50 50 26 . Highest-Rated Ally 50 | . . . 31 . . . . . . 50 25 25 26 . Total Orders . | . . . . . . . . . . . . . . . Ally Attacks 7 | . . . 3 . . . . . . . . 4 . . Total Damage 110 | . . . 43 . . . . . . . . 67 . . Kills . | . . . . . . . . . . . . . . . Allies Corrupted . | . . . . . . . . . . . . . . . Allies Melted . | . . . . . . . . . . . . . . . Intel | -11 -10 -9 -9 -8 -7 -7 -7 -7 -5 -5 -5 -5 -4 -4 ------- Run | Yrd Mat Mat Min Mat Fac Sto Rec Scr Fac Was Fac DSF Fac Upp Active Infowar (turns) 1633 | . 23 697 36 83 66 131 . . . 46 35 22 360 134 Sensors 478 | . . . . . . . . . . . . . 360 118 Terrain 841 | . 19 697 36 83 6 . . . . . . . . . Seismic 1036 | . 23 697 36 83 66 131 . . . . . . . . Cloaking 103 | . . . . . . . . . . 46 35 22 . . ECM 40 | . . . . . . . . . . . . . . 40 Robot Analysis Total 5 | . . . . . . . . 5 . . . . . . Derelict Logs Recovered 1 | . . . 1 . . . . . . . . . . . Drone Launches . | . . . . . . . . . . . . . . . Drone Recoveries . | . . . . . . . . . . . . . . . Exploration | -11 -10 -9 -9 -8 -7 -7 -7 -7 -5 -5 -5 -5 -4 -4 ------------- Run | Yrd Mat Mat Min Mat Fac Sto Rec Scr Fac Was Fac DSF Fac Upp Turns Passed 2549 | 9 55 697 36 83 66 137 120 307 86 162 35 44 503 209 Spaces Moved 4048 | 18 104 550 53 217 153 195 223 593 162 355 88 96 837 404 Core 1969 | 18 104 355 . . . 44 223 593 162 16 . 1 364 89 Treads . | . . . . . . . . . . . . . . . Legs . | . . . . . . . . . . . . . . . Wheels . | . . . . . . . . . . . . . . . Hover 16 | . . . . 1 . . . . . 10 . . 5 . Flight 2063 | . . 195 53 216 153 151 . . . 329 88 95 468 315 Fastest Speed 26 | 50 50 32 32 32 32 29 50 50 50 40 40 40 37 26 Average Speed 42 | 50 50 43 32 32 32 34 50 50 50 42 40 40 44 33 Slowest Speed 200 | 50 50 50 32 60 32 50 50 50 50 150 40 50 200 150 Overloaded Moves . | . . . . . . . . . . . . . . . Propulsion Burnouts . | . . . . . . . . . . . . . . . Robots Hopped 36 | . . 1 3 7 . 5 . . . . . 3 17 . Potential Cave-ins . | . . . . . . . . . . . . . . . Cave-ins Triggered . | . . . . . . . . . . . . . . . Exploration Rate (%) 33 | 2 27 30 17 26 7 39 57 48 4 94 2 86 23 44 Regions Visited 14 Branch Regions 5 Pre-discovered Areas 5 | . . . 1 . . . 4 . . . . . . . Known Exits Taken 3 | . . . . . . 1 . . . . 1 . 1 . Unknown Exits Taken 8 | 1 1 1 1 1 1 . 1 1 . . . . . . Scrap Searched . | . . . . . . . . . . . . . . . Spaces Dug 1 | . . . . . . . . . 1 . . . . . Terrain Destroyed 1 | . . . . . . . . . 1 . . . . . Melee 1 | . . . . . . . . . 1 . . . . . Projectile . | . . . . . . . . . . . . . . . AOE . | . . . . . . . . . . . . . . . Terrain Rammed . | . . . . . . . . . . . . . . . Walls Destroyed . | . . . . . . . . . . . . . . . Machines Disabled . | . . . . . . . . . . . . . . . Actions | -11 -10 -9 -9 -8 -7 -7 -7 -7 -5 -5 -5 -5 -4 -4 --------- Run | Yrd Mat Mat Min Mat Fac Sto Rec Scr Fac Was Fac DSF Fac Upp Total 4801 | 17 105 1003 68 218 167 249 230 604 165 366 87 98 949 475 Wait 672 | . . 430 17 1 12 30 7 . . 8 . 4 107 56 Move 3965 | 17 103 547 46 202 152 184 222 592 162 354 87 89 804 404 Hop 34 | . . 1 3 7 . 5 . . . . . 3 15 . Pick Up 21 | . . 9 1 . . 1 1 5 . 1 . 1 2 . Fast Attach 29 | . 2 4 . 3 1 3 . 1 1 2 . . 6 6 Attach 8 | . . . . . . . . 1 1 . . . 3 3 Detach 6 | . . 1 . . . . . . . 1 . . 1 3 Swap 1 | . . . . . . . . . . . . . . 1 Drop 21 | . . 5 1 . 1 5 . 5 . . . 1 2 1 Fire . | . . . . . . . . . . . . . . . Melee 28 | . . 6 . 5 1 6 . . 1 . . . 9 . Ram . | . . . . . . . . . . . . . . . Kick . | . . . . . . . . . . . . . . . Crush . | . . . . . . . . . . . . . . . Escape Stasis 15 | . . . . . . 15 . . . . . . . . Rewire . | . . . . . . . . . . . . . . . Trap . | . . . . . . . . . . . . . . . Miscellaneous 1 | . . . . . . . . . . . . . . 1 Route ------- -11/Scrapyard -10/Materials -9/Materials -9/Mines -8/Materials -7/Factory -7/Storage -7/Recycling (discovered 2 exits: [*Fac] / *Scr) -7/Scraptown -5/Factory -5/Waste -5/Factory -5/DSF -4/Factory (discovered 2 exits: *Upp x2) -4/Upper Caves History --------- Turn | Location | Event 5 | -11/Scrapyard | Discovered new exit (range 12) 10 | -11/Scrapyard | Entered Materials 56 | -10/Materials | Discovered new exit (range 15) 65 | -10/Materials | Entered another Materials area 65 | -9/Materials | Evolved 2 slots: Power x2 604 | -9/Materials | Build established: Sprinter 755 | -9/Materials | Discovered new exit (range 12) 762 | -9/Materials | Entered Mines 763 | -9/Mines | Assembled infested the area 763 | -9/Mines | Learned location of Storage (-7) 769 | -9/Mines | Discovered new exit (range 10) 798 | -9/Mines | Entered Materials 798 | -8/Materials | Evolved 2 slots: Propulsion x2 876 | -8/Materials | Discovered new exit (range 14) 881 | -8/Materials | Entered Factory 881 | -7/Factory | Evolved 2 slots: Power x2 922 | -7/Factory | Discovered new exit (range 13) 947 | -7/Factory | Entered Storage 948 | -7/Storage | Identified exit to Recycling 1082 | -7/Storage | Used back door to open Recycling access 1083 | -7/Storage | Core integrity fell below 50% 1084 | -7/Storage | Entered Recycling 1109 | -7/Recycling | Lost 6 parts (4n1u1w) 1161 | -7/Recycling | Discovered new exit (range 16) 1192 | -7/Recycling | Scanned before Scraplab entrance 1199 | -7/Recycling | Entered Scraplab 1203 | -7/Recycling | Discovered new exit (range 2) 1204 | -7/Recycling | Entered Scraptown 1231 | -7/Scraptown | Visited Shadow of the Wyrm 1242 | -7/Scraptown | Visited Red Mages 1247 | -7/Scraptown | Visited Cyclists 1255 | -7/Scraptown | Visited CPS Storage 1260 | -7/Scraptown | Visited Fellowship of the Rings 1296 | -7/Scraptown | Visited UFD Registry 1296 | -7/Scraptown | Registered with UFD as "Mattertail" 1314 | -7/Scraptown | Visited Junk Repository 1333 | -7/Scraptown | Visited LU-1G1's Boring Crew 1338 | -7/Scraptown | Build established: Mutant 1340 | -7/Scraptown | Visited Derelict Rescue Squad 1360 | -7/Scraptown | Found DRS Beacon 1386 | -7/Scraptown | Visited A0-MCA Data Center 1389 | -7/Scraptown | Given a C+ rating by A0-MCA 1393 | -7/Scraptown | Found A0-MCA's Component Scanner 1405 | -7/Scraptown | Visited Infowarlord's Domain 1409 | -7/Scraptown | Found Exp. Sensor Array 1418 | -7/Scraptown | Visited Research Penetration Think Tank 1436 | -7/Scraptown | Visited Chapter 10 1445 | -7/Scraptown | Visited Scrapoid Pod Storage 1464 | -7/Scraptown | Visited Analyses Database 1485 | -7/Scraptown | Discovered new exit (range 5) 1511 | -7/Scraptown | Entered Factory 1511 | -5/Factory | Evolved 4 slots: Propulsion x1, Utility x2, Weapon x1 1596 | -5/Factory | Discovered new exit (range 11) 1597 | -5/Factory | Sucked down chute 1597 | -5/Factory | Entered Waste 1598 | -5/Waste | Joined by Warlord forces that had cleared the area 1664 | -5/Waste | Build established: Hacker-Mutant 1671 | -5/Waste | Discovered new exit (range 16) 1759 | -5/Waste | Entered Factory 1759 | -5/Factory | Accompanied by 2 allies 1776 | -5/Factory | Identified exit to DSF 1794 | -5/Factory | Entered DSF 1794 | -5/DSF | Accompanied by 2 allies 1810 | -5/DSF | Additional patrols routed to DSF 1832 | -5/DSF | Discovered new exit (range 15) 1838 | -5/DSF | Entered Factory 1838 | -4/Factory | Evolved 2 slots: Utility x1, Weapon x1 1869 | -4/Factory | Lost 5 parts (2p1n1u1w) 2155 | -4/Factory | Identified exit to Upper Caves 2275 | -4/Factory | Fabricated Enh. Nova Cannon? 2312 | -4/Factory | Core integrity fell below 50% 2318 | -4/Factory | Lost 6 parts (4n1u1w) 2341 | -4/Factory | Entered Upper Caves 2342 | -4/Upper Caves | Activated DRS Beacon 2344 | -4/Upper Caves | Core integrity fell below 20% 2454 | -4/Upper Caves | Attracted the attention of an 0b10 outpost 2550 | -4/Upper Caves | Destroyed by H-77 Assassin with Coil Gun Last Messages --------------- 02418_ Acquired VTOL Module. 02419_ IJ,URJNMOW|1FGGSVKWB 02420_ Autogun fries itself beyond repair. 02420_ Acquired VTOL Module. 02422_ Acquired Lgt. Nuclear Core. 02424_ Acquired 40 matter. 02453_ Penetrated by Slug. 02453_ Slug penetrates Wall. 02454_ Y-72 Warden: "DETECTED UNIDENTIFIED DERELICT." 02454_ G-67 Veteran springs to life. 02457_ S-27 Virus destroyed. 02458_ Y-72 Warden: "REQUESTING BACKUP." 02461_ VTOL Module destroyed. 02461_ Slug penetrates Y-72 Warden. 02462_ System corrupted: Energy discharge (-66). 02462_ Lgt. Nuclear Core destroyed. 02483_ Acquired 10 matter. 02485_ 1F-6QR(k) breaks down the debris. 02490_ Acquired 5 matter. 02510_ Acquired 1 matter. Map ----- +----------------------------------------------------+ | # *% ##?? #??????????????????????# | | ## # !=#???### #??????????????????????# | | ### ### ##"%#??????# ???????????????#??????# # | | ### #" "# #####???# ?????????????# #?????# # | | #" "# # ##??? ???????????# ????## | | #" "# ##??? ?????????# ????# | | #"" ""# #???# ????????# #????#### | | ######## #???? ??????## ##??????## | | ##????? #???????# ###?????# | | ## ###????????????????# #?????? | | ### ##???????????#######? ??????? | | #??###????????????# #?# #??????## | | #######?####??????# #?## #??????## | | ### ######## #### #?????### | | % % ##" ####### | | ## % % % % ## | | ### #% ## % | | ### #### #### % ###% | | #####?####??# #??# #?######## | | #??????????? #??# #????????## | | #??????????? #??# #?????????# | | ##??????????? ##??# h####???????# ## | | ##????????????###???# #???????## ##### | | ##???????????????????## #????????###???## # | | #?????????????????????# ### #???????????????#### | | #???????????????????###@### ##?????????????????? | | #???????????????????# ##????????????????? | | ##???????????????????# ##???????????????? | | ##????????????????????# #???????????????? | | #????????????????????# % %#???????????????? | | ?????????????????????#### %%##???????????????? | | ????????????????????????#########????????????????? | | ?????????????????????????????????????????????????? | | ?????????????????????????????????????????????????? | | ?????????????????????????????????????????????????? | | ?????????????????????????????????????????????????? | | ?????????????????????????????????????????????????? | | ?????????????????????????????????????????????????? | | ?????????????????????????????????????????????????? | | ?????????????????????????????????????????????????? | | ?????????????????????????????????????????????????? | | ?????????????????????????????????????????????????? | | ?????????????????????????????????????????????????? | | ?????????????????????????????????????????????????? | | ?????????????????????????????????????????????????? | | ?????????????????????????????????????????????????? | | ?????????????????????????????????????????????????? | | | | | | | +----------------------------------------------------+ Best States ------------- Heat Dissipation 43 Energy Generation 23 Energy Capacity 220 Matter Stores 300 Matter Capacity 300 Sight Range 16 Robot Scan Range 20 Terrain Scan Range 14 Terrain Scan Density 10 ECM Strength 2 Cloak Strength 3 Evasion (%) 64 Offensive Hacking 20 Defensive Hacking 10 Item Schematics ----------------- Hcp. Battery | -9/Materials | Scanalyzed Robot Schematics ------------------ G-47 Trooper | -7/Recycling | Hacked Fabricated ------------ Enh. Nova Cannon | x2 | -4/Factory | Preloaded Repaired ---------- Nothing Studied --------- Datajack | -8/Materials | Hacked Alien Tech Used ----------------- None Achievements -------------- You May Approach The Wall Challenges ------------ None Game ------ Seed RocketMobileNetwork Manual? 0 Play Time 00:38:15 Cumulative 270.0 hours Start 2025.11.04 @ 20:00:30 End 2025.11.04 @ 20:35:25 Sessions 1 Manual Loads 0 Difficulty Rogue Special Mode None Game No. 303 Rogue 303 Adventurer 0 Explorer 0 Win Type - Total 3 Types 3/0/0/0/0/0/0/0/0/0 Lore% 76 Gallery% 71 Achievement% 52 Wizard Run 0 Options --------- Layout 0 ASCII 0 Keyboard 1 Movement Vi Keybinds 0 Fullscreen 2 Font 18/VGA_Max Map View 76x50 Zoom Use 0% Tactical HUD 1 Map Filters NONE Filters NONE Steam 1 RUN: 66a2dd5b-ed03-4ab6-b036-a66bf10656ae